fUST/lending_fUST_20250223
["ID","MTS","AMOUNT","RATE_DAILY","PERIOD"]
[354156243,1740295845190,-503.33172563,0.00014297,2]
[354156244,1740295845200,-502.27151958,0.00014297,2]
[354156245,1740295845209,-506.41196024,0.00014297,2]
[354156246,1740295845220,-151.0,0.00014297,2]
[354156247,1740295845229,-500.0,0.00014297,2]
[354156248,1740295845239,-500.0,0.00014297,2]
[354156249,1740295845248,-501.30356303,0.00014297,2]
[354156250,1740295845257,-500.0,0.00014297,2]
[354156251,1740295845266,-505.17754031,0.00014297,2]
[354156252,1740295845275,-505.57761153,0.00014297,2]
[354156253,1740295845284,-500.0,0.00014297,2]
[354156254,1740295845293,-502.51485107,0.00014297,2]
[354156255,1740295845301,-218.828,0.00014297,2]
[354156256,1740295845310,-218.828,0.00014297,2]
[354156257,1740295845320,-502.63092806,0.00014297,2]
[354156258,1740295845330,-500.0,0.00014297,2]
[354156259,1740295845339,-1000.0,0.00014298,2]
[354156260,1740295845349,-1000.76722228,0.00014298,2]
[354156261,1740295845363,-1000.51026839,0.00014298,2]
[354156262,1740295845372,-1000.0,0.00014298,2]
[354156263,1740295845381,-500.0,0.00014298,2]
[354156264,1740295845391,-500.0,0.00014298,2]
[354156265,1740295845401,-500.0,0.00014298,2]
[354156266,1740295845410,-500.0,0.00014299,2]
[354156267,1740295845420,-500.0,0.00014299,2]
[354156268,1740295845429,-502.91043668,0.00014299,2]
[354156269,1740295845439,-502.46975079,0.00014299,2]
[354156270,1740295845448,-501.19270467,0.00014299,2]
[354156271,1740295845457,-500.0,0.00014299,2]
[354156272,1740295845466,-151.0,0.00014299,2]
[354156273,1740295845476,-334.54,0.00014356,2]
[354156274,1740295845486,-500.0,0.00014356,2]
[354156275,1740295845495,-742.44,0.00014356,2]
[354156276,1740295845504,-500.0,0.00014356,2]
[354156277,1740295845514,-439.1554356,0.00014356,2]
[354156278,1740295845523,-384.24131476,0.00014356,2]
[354156279,1740295845532,-500.0,0.00014356,2]
[354156280,1740295845541,-500.0,0.00014356,2]
[354156281,1740295845551,-2912.29,0.00014356,2]
[354156283,1740295845560,-500.0,0.00014356,2]
[354156285,1740295845570,-7760.61,0.00014356,2]
[354156286,1740295845579,-648.16,0.00014356,2]
[354156288,1740295845589,-2041.78,0.00014356,2]
[354156290,1740295845599,-1433.73,0.00014356,2]
[354156292,1740295845608,-673.81,0.00014356,2]
[354156293,1740295845618,-500.0,0.00014356,2]
[354156294,1740295845628,-500.0,0.00014356,2]
[354156295,1740295845638,-3000.0,0.00014365,2]
[354156296,1740295845648,-500.0,0.0001438,2]
[354156297,1740295845657,-500.0,0.0001438,2]
[354156298,1740295845669,-2900.49,0.0001438,2]
[354156299,1740295845679,-500.0,0.0001438,2]
[354156300,1740295845688,-500.0,0.0001438,2]
[354156301,1740295845697,-500.0,0.0001438,2]
[354156302,1740295845707,-500.0,0.0001438,2]
[354156304,1740295845716,-500.0,0.0001438,2]
[354156306,1740295845725,-500.0,0.0001438,2]
[354156308,1740295845736,-500.0,0.0001438,2]
[354156310,1740295845746,-1000.0,0.0001438,2]
[354156312,1740295845756,-500.0,0.0001438,2]
[354156313,1740295845766,-500.0,0.0001438,2]
[354156321,1740295845855,-500.0,0.0001438,2]
[354156322,1740295845864,-507.34246424,0.0001438,2]
[354156324,1740295845875,-151.0,0.0001438,2]
[354156325,1740295845884,-500.0,0.0001438,2]
[354156326,1740295845894,-151.0,0.0001438,2]
[354156328,1740295845904,-151.0,0.0001438,2]
[354156330,1740295845913,-500.0,0.00014381,2]
[354156331,1740295845923,-197.0,0.000144,14]
[354156333,1740295845933,-160.35455737,0.00014437,2]
[354156335,1740295845942,-500.0,0.00014438,2]
[354156337,1740295845952,-742.44,0.00014438,2]
[354156339,1740295845961,-500.0,0.00014438,2]
[354156340,1740295845971,-500.0,0.00014438,2]
[354156341,1740295845980,-2912.29,0.00014438,2]
[354156342,1740295845989,-500.0,0.00014438,2]
[354156343,1740295845999,-7760.61,0.00014438,2]
[354156344,1740295846009,-648.16,0.00014438,2]
[354156345,1740295846019,-2041.78,0.00014438,2]
[354156346,1740295846028,-1433.73,0.00014438,2]
[354156347,1740295846039,-673.81,0.00014438,2]
[354156348,1740295846049,-500.0,0.00014438,2]
[354156349,1740295846058,-500.0,0.00014438,2]
[354156350,1740295846068,-500.0,0.00014462,2]
[354156351,1740295846077,-500.0,0.00014462,2]
[354156352,1740295846087,-2900.49,0.00014462,2]
[354156353,1740295846096,-500.0,0.00014462,2]
[354156354,1740295846106,-558.14935204,0.00014462,2]
[354156355,1740295846115,-500.0,0.00014462,2]
[354156356,1740295846125,-505.69988613,0.00014462,2]
[354156357,1740295846135,-500.0,0.00014462,2]
[354156358,1740295846144,-500.0,0.00014462,2]
[354156359,1740295846154,-505.99557686,0.00014462,2]
[354156360,1740295846164,-500.0,0.00014462,2]
[354156361,1740295846174,-313.18793951,0.00014463,2]
[354156362,1740295846184,-500.0,0.00014463,2]
[354156363,1740295846194,-514.88140452,0.00014463,2]
[354156364,1740295846203,-492.2833578,0.00014464,2]
[354156365,1740295846213,-157.41790525,0.00014464,2]
[354156366,1740295846223,-1926.91600889,0.00014465,5]
[354156367,1740295846235,-6357.78280158,0.00014465,5]
[354156368,1740295846244,-151124.48966325,0.00014465,5]
[354156369,1740295846387,-2750.59472626,0.00014465,5]
[354156370,1740295846401,-1044.90529976,0.00014465,5]
[354156371,1740295854516,-150.0,0.00012999,2]
[354156372,1740295856445,-150.0,0.00012999,2]
[354156373,1740295857120,-150.0,0.00012999,2]
[354156374,1740295857736,-50.0,0.00012999,2]
[354156375,1740295857762,-100.0,0.00012999,2]
[354156376,1740295858191,-150.0,0.00012999,2]
[354156377,1740295858692,-52.10379872,0.00012999,2]
[354156378,1740295858716,-97.89620128,0.00012999,2]
[354156379,1740295876256,-150.0,0.00012998,2]
[354156380,1740295879097,-150.0,0.00012998,2]
[354156382,1740296103127,156.51609609,0.00019,120]
[354156383,1740296336943,-197.0,0.000145,15]
[354156384,1740296510415,-852.4495665,0.00012677,2]
[354156385,1740296510441,-6799.1373806,0.00012805,2]
[354156386,1740296510467,-352.6581421,0.00013232,2]
[354156387,1740296510490,-300.0,0.00013672,2]
[354156388,1740296510525,-500.0,0.00013673,2]
[354156389,1740296510561,-500.0,0.00013673,2]
[354156390,1740296510592,-500.0,0.00013673,2]
[354156391,1740296510623,-500.0,0.00013673,2]
[354156392,1740296510652,-500.0,0.00013673,2]
[354156393,1740296510682,-500.0,0.00013673,2]
[354156394,1740296510712,-500.0,0.00013698,2]
[354156395,1740296510736,-636.52,0.00013698,2]
[354156396,1740296510761,-484.2349108,0.00013698,2]
[354156398,1740296641510,282.919588,9.041e-05,2]
[354156415,1740297032491,-500.0,0.00013673,2]
[354156416,1740297032502,-300.0,0.00013697,2]
[354156417,1740297032512,-492.2833578,0.00013698,2]
[354156418,1740297032522,-506.82054466,0.00013698,2]
[354156419,1740297032531,-502.34648155,0.00013698,2]
[354156420,1740297032541,-500.0,0.00013698,2]
[354156421,1740297032551,-503.05733739,0.00013698,2]
[354156422,1740297032561,-500.0,0.00013698,2]
[354156423,1740297032571,-500.0,0.00013698,2]
[354156425,1740297032581,-500.0,0.00013698,2]
[354156427,1740297032590,-500.0,0.00013698,2]
[354156429,1740297032600,-254.07970941,0.00013698,2]
[354156431,1740297032609,-500.0,0.00013698,2]
[354156433,1740297032618,-504.06989746,0.00013698,2]
[354156435,1740297032628,-507.10443582,0.00013698,2]
[354156437,1740297032637,-500.0,0.00013698,2]
[354156439,1740297032647,-504.17831705,0.00013698,2]
[354156441,1740297032656,-503.66455643,0.00013698,2]
[354156443,1740297032666,-500.0,0.00013698,2]
[354156444,1740297032675,-503.09537539,0.00013698,2]
[354156445,1740297032687,-500.0,0.00013698,2]
[354156446,1740297032696,-506.74443551,0.00013698,2]
[354156447,1740297032705,-503.82155138,0.00013698,2]
[354156448,1740297032715,-500.0,0.00013698,2]
[354156449,1740297032725,-502.7612757,0.00013698,2]
[354156450,1740297032734,-500.0,0.00013698,2]
[354156451,1740297032744,-298.68262248,0.00013698,2]
[354156452,1740297032756,-202.0519433,0.00013698,2]
[354156453,1740297032766,-117.9480567,0.00013698,2]
[354156505,1740297038182,-382.0519433,0.00013698,2]
[354156507,1740297038192,-500.0,0.00013698,2]
[354156509,1740297038201,-500.0,0.00013698,2]
[354156511,1740297038211,-501.88445061,0.00013698,2]
[354156513,1740297038221,-500.83111502,0.00013698,2]
[354156515,1740297038231,-500.0,0.00013698,2]
[354156518,1740297038240,-503.39332421,0.00013698,2]
[354156521,1740297038249,-500.0,0.00013698,2]
[354156524,1740297038258,-500.0,0.00013698,2]
[354156526,1740297038267,-506.09003924,0.00013698,2]
[354156529,1740297038276,-339.43634239,0.00013698,2]
[354156531,1740297038285,-506.07084081,0.00013698,2]
[354156533,1740297038294,-503.2251007,0.00013698,2]
[354156535,1740297038304,-500.0,0.00013698,2]
[354156537,1740297038313,-500.0,0.00013698,2]
[354156539,1740297038323,-500.0,0.00013698,2]
[354156541,1740297038332,-503.59592704,0.00013698,2]
[354156543,1740297038341,-559.09928059,0.00013698,2]
[354156545,1740297038351,-500.88179063,0.00013698,2]
[354156547,1740297038362,-500.0,0.00013698,2]
[354156549,1740297038371,-334.36875863,0.00013698,2]
[354156551,1740297038380,-503.34205156,0.00013698,2]
[354156553,1740297038389,-507.49220322,0.00013698,2]
[354156555,1740297038398,-502.87152988,0.00013698,2]
[354156557,1740297038408,-500.0,0.00013698,2]
[354156559,1740297038417,-501.51915282,0.00013698,2]
[354156561,1740297038426,-501.4833729,0.00013698,2]
[354156563,1740297038436,-500.0,0.00013698,2]
[354156565,1740297038445,-502.8107848,0.00013698,2]
[354156567,1740297038455,-505.71285648,0.00013698,2]
[354156569,1740297038465,-504.7855162,0.00013698,2]
[354156571,1740297038474,-503.48,0.00013698,2]
[354156573,1740297038483,-500.0,0.00013698,2]
[354156575,1740297038492,-501.56379136,0.00013698,2]
[354156577,1740297038501,-500.0,0.00013698,2]
[354156579,1740297038510,-500.0,0.00013698,2]
[354156581,1740297038519,-194.3266691,0.00013698,2]
[354156583,1740297038528,-500.37202347,0.00013698,2]
[354156585,1740297038537,-500.69589319,0.00013698,2]
[354156587,1740297038546,-55.08643935,0.00013698,2]
[354156590,1740297038559,-446.04108706,0.00013698,2]
[354156592,1740297038567,-503.18884368,0.00013698,2]
[354156594,1740297038577,-500.92207777,0.00013698,2]
[354156596,1740297038585,-501.98301788,0.00013698,2]
[354156598,1740297038594,-500.0,0.00013698,2]
[354156600,1740297038603,-37.38027761,0.00013698,2]
[354156602,1740297038615,-463.84027369,0.00013698,2]
[354156604,1740297038623,-309.73407951,0.00013698,2]
[354156606,1740297038634,-192.63540571,0.00013698,2]
[354156608,1740297038643,-220.66459929,0.00013698,2]
[354156610,1740297038655,-279.33540071,0.00013698,2]
[354156612,1740297038665,-296.35209689,0.00013698,2]
[354156614,1740297038677,-211.11925914,0.00013698,2]
[354156616,1740297038686,-251.71762675,0.00013698,2]
[354156617,1740297038697,-249.16203408,0.00013698,2]
[354156618,1740297038706,-504.45795933,0.00013698,2]
[354156619,1740297038715,-178.04000659,0.00013698,2]
[354156620,1740297038726,-321.95999341,0.00013698,2]
[354156621,1740297038735,-452.42434357,0.00013698,2]
[354156622,1740297038744,-500.0,0.00013698,2]
[354156623,1740297038754,-231.81907735,0.00013698,2]
[354156624,1740297038763,-500.0,0.00013698,2]
[354156625,1740297038772,-501.65672815,0.00013698,2]
[354156626,1740297038780,-500.88500141,0.00013698,2]
[354156627,1740297038790,-500.0,0.00013698,2]
[354156628,1740297038799,-500.0,0.00013698,2]
[354156629,1740297038809,-500.0,0.00013698,2]
[354156630,1740297038819,-502.40141707,0.00013698,2]
[354156631,1740297038828,-510.2680177,0.00013698,2]
[354156632,1740297038838,-503.94237526,0.00013698,2]
[354156633,1740297038847,-501.29472775,0.00013698,2]
[354156634,1740297038856,-502.13774958,0.00013698,2]
[354156635,1740297038866,-502.08859143,0.00013698,2]
[354156636,1740297038879,-501.46037998,0.00013698,2]
[354156637,1740297038888,-505.86405004,0.00013698,2]
[354156638,1740297038898,-506.55807441,0.00013698,2]
[354156639,1740297038908,-505.35837459,0.00013698,2]
[354156640,1740297038918,-503.71212639,0.00013698,2]
[354156641,1740297038928,-500.0,0.00013698,2]
[354156642,1740297038938,-502.87780523,0.00013698,2]
[354156643,1740297038947,-501.09164938,0.00013698,2]
[354156644,1740297038957,-504.72630035,0.00013698,2]
[354156645,1740297038966,-500.0,0.00013698,2]
[354156646,1740297038975,-500.0,0.00013698,2]
[354156647,1740297038985,-500.0,0.00013698,2]
[354156648,1740297038994,-502.20224788,0.00013698,2]
[354156649,1740297039003,-505.97636002,0.00013698,2]
[354156650,1740297039013,-506.09526892,0.00013698,2]
[354156651,1740297039022,-393.74299951,0.00013698,2]
[354156652,1740297039032,-501.78048137,0.00013698,2]
[354156653,1740297039043,-504.21589227,0.00013698,2]
[354156654,1740297039052,-500.0,0.00013698,2]
[354156655,1740297039062,-500.0,0.00013698,2]
[354156656,1740297039072,-501.61316176,0.00013698,2]
[354156657,1740297039081,-500.0,0.00013698,2]
[354156658,1740297039091,-505.32403093,0.00013698,2]
[354156659,1740297039100,-500.0,0.00013698,2]
[354156660,1740297039110,-481.81999134,0.00013698,2]
[354156661,1740297039119,-501.84472196,0.00013698,2]
[354156662,1740297039129,-502.1725718,0.00013698,2]
[354156663,1740297039138,-511.34675615,0.00013698,2]
[354156664,1740297039224,-1000.0,0.00013698,2]
[354156665,1740297039251,-502.00509298,0.00013698,2]
[354156666,1740297039260,-505.0681588,0.00013698,2]
[354156667,1740297039269,-500.0,0.00013698,2]
[354156668,1740297039278,-500.0,0.00013698,2]
[354156669,1740297039287,-500.0,0.00013698,2]
[354156670,1740297039297,-500.0,0.00013698,2]
[354156671,1740297039307,-590.52860551,0.00013698,2]
[354156672,1740297039317,-590.04752695,0.00013698,2]
[354156673,1740297039326,-504.02125148,0.00013698,2]
[354156674,1740297039335,-574.17450534,0.00013698,2]
[354156675,1740297039345,-501.96639345,0.00013698,2]
[354156676,1740297039354,-500.0,0.00013698,2]
[354156677,1740297039363,-501.98726523,0.00013698,2]
[354156678,1740297039373,-503.21657419,0.00013698,2]
[354156679,1740297039382,-503.70220835,0.00013698,2]
[354156680,1740297039392,-500.0,0.00013698,2]
[354156681,1740297039401,-161.35126981,0.00013698,2]
[354156682,1740297039410,-355.94999976,0.00013698,2]
[354156683,1740297039419,-500.0,0.00013698,2]
[354156684,1740297039429,-500.0,0.00013698,2]
[354156685,1740297039438,-500.0,0.00013698,2]
[354156686,1740297039447,-500.0,0.00013698,2]
[354156687,1740297039456,-504.7819285,0.00013698,2]
[354156688,1740297039465,-500.0,0.00013698,2]
[354156689,1740297039475,-500.0,0.00013698,2]
[354156690,1740297039484,-193.97273763,0.00013698,2]
[354156691,1740297039493,-515.7650892,0.00013698,2]
[354156692,1740297039502,-500.0,0.00013698,2]
[354156693,1740297039511,-507.44706292,0.00013698,2]
[354156694,1740297039520,-503.35274698,0.00013698,2]
[354156695,1740297039529,-520.71352583,0.00013698,2]
[354156696,1740297039538,-500.0,0.00013698,2]
[354156697,1740297039547,-506.87209647,0.00013698,2]
[354156698,1740297039556,-500.0,0.00013698,2]
[354156699,1740297039565,-506.41196024,0.00013698,2]
[354156700,1740297039574,-500.0,0.00013698,2]
[354156701,1740297039583,-503.33172563,0.00013698,2]
[354156702,1740297039592,-502.27151958,0.00013698,2]
[354156703,1740297039601,-500.0,0.00013698,2]
[354156704,1740297039610,-500.0,0.00013698,2]
[354156705,1740297039619,-500.0,0.00013698,2]
[354156706,1740297039628,-500.0,0.00013698,2]
[354156708,1740297039637,-500.0,0.00013698,2]
[354156709,1740297039646,-500.0,0.00013698,2]
[354156711,1740297039655,-501.30356303,0.00013698,2]
[354156713,1740297039664,-505.17754031,0.00013698,2]
[354156715,1740297039673,-505.57761153,0.00013698,2]
[354156716,1740297039682,-500.0,0.00013698,2]
[354156717,1740297039694,-530.01211036,0.00013698,2]
[354156718,1740297039703,-500.0,0.00013698,2]
[354156719,1740297039712,-500.64292556,0.00013698,2]
[354156720,1740297039720,-500.0,0.00013698,2]
[354156721,1740297039730,-500.0,0.00013698,2]
[354156722,1740297039739,-327.10452472,0.00013698,2]
[354156723,1740297039748,-509.95115036,0.00013698,2]
[354156724,1740297039757,-502.51485107,0.00013698,2]
[354156725,1740297039766,-500.0,0.00013698,2]
[354156726,1740297039775,-500.0,0.00013698,2]
[354156727,1740297039784,-502.63092806,0.00013698,2]
[354156728,1740297039793,-500.0,0.00013698,2]
[354156729,1740297039802,-500.0,0.00013698,2]
[354156730,1740297039811,-500.0,0.00013698,2]
[354156731,1740297039820,-500.0,0.00013698,2]
[354156732,1740297039829,-500.0,0.00013698,2]
[354156733,1740297039838,-500.0,0.00013698,2]
[354156735,1740297039847,-504.12576248,0.00013698,2]
[354156738,1740297039856,-500.0,0.00013698,2]
[354156740,1740297039866,-505.77012204,0.00013698,2]
[354156741,1740297039878,-506.96617754,0.00013698,2]
[354156742,1740297039887,-500.0,0.00013698,2]
[354156743,1740297039896,-500.0,0.00013698,2]
[354156744,1740297039905,-505.25981241,0.00013698,2]
[354156745,1740297039915,-503.92702111,0.00013698,2]
[354156746,1740297039926,-500.0,0.00013698,2]
[354156747,1740297039937,-500.0,0.00013698,2]
[354156748,1740297039948,-500.0,0.00013698,2]
[354156749,1740297039957,-500.0,0.00013698,2]
[354156750,1740297039966,-500.0,0.00013698,2]
[354156751,1740297039976,-500.0,0.00013698,2]
[354156752,1740297039985,-500.0,0.00013698,2]
[354156753,1740297039994,-776.76,0.00013698,2]
[354156754,1740297040003,-500.0,0.00013698,2]
[354156755,1740297040012,-503.98778979,0.00013698,2]
[354156756,1740297040022,-500.0,0.00013698,2]
[354156757,1740297040031,-183.26128324,0.00013698,2]
[354156758,1740297040041,-526.93548811,0.00013698,2]
[354156759,1740297040051,-500.0,0.00013698,2]
[354156760,1740297040060,-500.0,0.00013698,2]
[354156761,1740297040071,-335.4797809,0.00013698,2]
[354156762,1740297040086,-164.5202191,0.00013698,2]
[354156763,1740297040096,-500.0,0.00013698,2]
[354156764,1740297040105,-127.57948319,0.00013698,2]
[354156766,1740297040128,-376.81795837,0.00013698,2]
[354156768,1740297040138,-500.0,0.00013698,2]
[354156769,1740297040147,-500.0,0.00013698,2]
[354156771,1740297040156,-506.10871049,0.00013698,2]
[354156772,1740297040165,-500.0,0.00013698,2]
[354156773,1740297040174,-638.34,0.00013698,2]
[354156774,1740297040184,-500.0,0.00013698,2]
[354156775,1740297040194,-500.0,0.00013698,2]
[354156777,1740297040203,-500.0,0.00013698,2]
[354156779,1740297040213,-500.0,0.00013698,2]
[354156780,1740297040222,-161.55443447,0.00013698,2]
[354156781,1740297040231,-500.0,0.00013698,2]
[354156782,1740297040241,-500.0,0.00013698,2]
[354156783,1740297040250,-500.0,0.00013698,2]
[354156785,1740297040259,-508.63657834,0.00013698,2]
[354156787,1740297040268,-502.41000651,0.00013698,2]
[354156788,1740297040277,-500.0,0.00013698,2]
[354156789,1740297040286,-500.0,0.00013698,2]
[354156790,1740297040295,-500.0,0.00013698,2]
[354156791,1740297040304,-500.0,0.00013698,2]
[354156793,1740297040314,-500.0,0.00013698,2]
[354156794,1740297040323,-2859.83,0.00013698,2]
[354156795,1740297040332,-500.0,0.00013698,2]
[354156796,1740297040341,-500.0,0.00013698,2]
[354156797,1740297040350,-500.0,0.00013698,2]
[354156798,1740297040359,-500.0,0.00013698,2]
[354156799,1740297040369,-613.34,0.00013698,2]
[354156800,1740297040378,-500.0,0.00013698,2]
[354156801,1740297040387,-2900.49,0.00013698,2]
[354156802,1740297040396,-500.0,0.00013698,2]
[354156803,1740297040406,-500.0,0.00013698,2]
[354156804,1740297040415,-500.0,0.00013698,2]
[354156805,1740297040425,-7276.67,0.00013698,2]
[354156806,1740297040434,-500.0,0.00013698,2]
[354156807,1740297040444,-500.0,0.00013698,2]
[354156808,1740297040453,-500.0,0.00013698,2]
[354156809,1740297040462,-503.80693172,0.00013698,2]
[354156810,1740297040471,-500.0,0.00013698,2]
[354156811,1740297040481,-500.0,0.00013698,2]
[354156813,1740297040490,-500.0,0.00013698,2]
[354156815,1740297040499,-502.94509089,0.00013698,2]
[354156816,1740297040508,-500.0,0.00013698,2]
[354156818,1740297040517,-510.55,0.00013698,2]
[354156819,1740297040526,-224.8062211,0.00013698,2]
[354156820,1740297040535,-2032.42,0.00013698,2]
[354156821,1740297040544,-504.19276792,0.00013698,2]
[354156822,1740297040553,-500.0,0.00013698,2]
[354156823,1740297040562,-503.36893666,0.00013698,2]
[354156824,1740297040571,-502.24850568,0.00013698,2]
[354156825,1740297040582,-208.64156249,0.00013698,2]
[354156826,1740297040591,-500.0,0.00013698,2]
[354156827,1740297040601,-505.41212528,0.00013698,2]
[354156828,1740297040610,-500.0,0.00013698,2]
[354156829,1740297040619,-503.85661716,0.00013698,2]
[354156830,1740297040628,-709.75,0.00013698,2]
[354156831,1740297040637,-1399.14,0.00013698,2]
[354156832,1740297040646,-500.0,0.00013698,2]
[354156833,1740297040656,-501.30634156,0.00013698,2]
[354156834,1740297040665,-428.01940301,0.00013698,2]
[354156835,1740297040675,-527.15,0.00013698,2]
[354156836,1740297040684,-500.0,0.00013698,2]
[354156837,1740297040694,-500.0,0.00013698,2]
[354156838,1740297040703,-500.0,0.00013698,2]
[354156839,1740297040712,-502.79571364,0.00013698,2]
[354156840,1740297040721,-502.02009807,0.00013698,2]
[354156841,1740297040730,-511.31260758,0.00013698,2]
[354156842,1740297040739,-503.57161514,0.00013698,2]
[354156843,1740297040748,-402.96688032,0.00013698,2]
[354156844,1740297040757,-500.0,0.00013698,2]
[354156845,1740297040766,-500.0,0.00013698,2]
[354156846,1740297040776,-500.0,0.00013698,2]
[354156847,1740297040785,-503.25895458,0.00013698,2]
[354156848,1740297040795,-296.35938849,0.00013698,2]
[354156849,1740297040804,-500.0,0.00013698,2]
[354156850,1740297040813,-180.05387505,0.00013699,2]
[354156851,1740297040823,-302.2581128,0.00013699,2]
[354156852,1740297040832,-934.591307,0.00013699,2]
[354156853,1740297040841,-14762.93208947,0.00013763,2]
[354156854,1740297040850,-500.0,0.00013779,2]
[354156855,1740297040859,-302.10379872,0.00013779,2]
[354156856,1740297040869,-500.0,0.00013779,2]
[354156857,1740297040881,-637.6560464,0.00013779,2]
[354156858,1740297040890,-500.0,0.00013779,2]
[354156859,1740297040899,-500.0,0.00013779,2]
[354156860,1740297040908,-500.0,0.00013779,2]
[354156861,1740297040918,-501.55007997,0.0001378,2]
[354156862,1740297040927,-500.0,0.0001378,2]
[354156863,1740297040937,-359.65015428,0.0001378,2]
[354156864,1740297040947,-502.32061473,0.0001378,2]
[354156865,1740297040957,-500.0,0.0001378,2]
[354156866,1740297040966,-316.26211098,0.0001378,2]
[354156867,1740297040976,-190.94521256,0.0001378,2]
[354156868,1740297040986,-638.59621379,0.0001378,2]
[354156869,1740297040995,-500.0,0.0001378,2]
[354156870,1740297041004,-500.0,0.0001378,2]
[354156871,1740297041013,-500.0,0.0001378,2]
[354156872,1740297041023,-501.32768621,0.0001378,2]
[354156873,1740297041033,-500.0,0.0001378,2]
[354156874,1740297041042,-500.0,0.0001378,2]
[354156875,1740297041051,-502.4315246,0.0001378,2]
[354156876,1740297041061,-500.0,0.0001378,2]
[354156877,1740297041072,-204.05839644,0.0001378,2]
[354156878,1740297041081,-500.0,0.0001378,2]
[354156879,1740297041090,-501.42593789,0.0001378,2]
[354156880,1740297041100,-500.0,0.0001378,2]
[354156881,1740297041109,-1000.0,0.0001378,2]
[354156882,1740297041119,-500.0,0.0001378,2]
[354156883,1740297041128,-500.0,0.0001378,2]
[354156884,1740297041137,-500.0,0.0001378,2]
[354156885,1740297041147,-500.0,0.0001378,2]
[354156886,1740297041155,-500.0,0.0001378,2]
[354156887,1740297041164,-500.0,0.0001378,2]
[354156888,1740297041174,-500.0,0.0001378,2]
[354156889,1740297041183,-500.0,0.0001378,2]
[354156890,1740297041194,-503.58646916,0.0001378,2]
[354156891,1740297041203,-500.0,0.0001378,2]
[354156892,1740297041213,-500.0,0.0001378,2]
[354156893,1740297041222,-500.0,0.0001378,2]
[354156894,1740297041231,-500.0,0.0001378,2]
[354156895,1740297041240,-500.0,0.0001378,2]
[354156896,1740297041251,-500.0,0.0001378,2]
[354156897,1740297041260,-500.0,0.0001378,2]
[354156898,1740297041269,-500.0,0.0001378,2]
[354156899,1740297041278,-500.0,0.0001378,2]
[354156900,1740297041287,-500.0,0.0001378,2]
[354156901,1740297041296,-500.0,0.0001378,2]
[354156902,1740297041306,-507.34246424,0.0001378,2]
[354156903,1740297041315,-500.0,0.0001378,2]
[354156904,1740297041324,-527.59845837,0.0001378,2]
[354156905,1740297041333,-302.29,0.0001378,2]
[354156906,1740297041343,-500.0,0.0001378,2]
[354156907,1740297041352,-502.18,0.0001378,2]
[354156908,1740297041362,-500.0,0.0001378,2]
[354156909,1740297041370,-260.55,0.0001378,2]
[354156910,1740297041380,-776.76,0.0001378,2]
[354156911,1740297041389,-424.15418371,0.0001378,2]
[354156912,1740297041398,-500.0,0.0001378,2]
[354156913,1740297041407,-500.0,0.0001378,2]
[354156914,1740297041416,-500.0,0.0001378,2]
[354156915,1740297041425,-357.81,0.0001378,2]
[354156916,1740297041434,-500.0,0.0001378,2]
[354156917,1740297041447,-500.0,0.0001378,2]
[354156918,1740297041456,-500.0,0.0001378,2]
[354156919,1740297041466,-500.0,0.0001378,2]
[354156920,1740297041475,-500.0,0.0001378,2]
[354156921,1740297041485,-500.0,0.0001378,2]
[354156922,1740297041494,-343.97326887,0.0001378,2]